[Event "*** Titled Tuesday 3|2 Blitz"]
[Site "Chess.com"]
[Date "2016.08.02"]
[Round "9"]
[White "bugsbunny444"]
[Black "fpawn"]
[Result "1-0"]
[WhiteElo "2296"]
[BlackElo "2202"]
[TimeControl "180+2"]
[EndTime "13:06:44 PDT"]
[Termination "bugsbunny444 won by resignation"]

1. Nf3 {[%clk 0:03:01.9]} 1... d5 {[%clk 0:03:00.3]} 2. c4 {[%clk 0:03:02.9]}
2... c6 {[%clk 0:03:00.9]} 3. g3 {[%clk 0:03:04.1]} 3... e6 {[%clk 0:02:58.8]}
4. Bg2 {[%clk 0:03:04.9]} 4... Nd7 {[%clk 0:02:59.4]} 5. O-O {[%clk 0:02:57.6]}
5... Ngf6 {[%clk 0:03:00.3]} 6. b3 {[%clk 0:02:58.4]} 6... Be7 {[%clk
0:03:00.6]} 7. d4 {[%clk 0:02:53.9]} 7... Ne4 {[%clk 0:02:58.6]} 8. Nfd2 {[%clk
0:02:50.9]} 8... Nxd2 {[%clk 0:02:50.2]} 9. Nxd2 {[%clk 0:02:51.2]} 9... O-O
{[%clk 0:02:49.8]} 10. e4 {[%clk 0:02:46.1]} 10... dxe4 {[%clk 0:02:44.2]} 11.
Nxe4 {[%clk 0:02:47]} 11... b6 {[%clk 0:02:38.1]} 12. Bf4 {[%clk 0:02:20]} 12...
Bb7 {[%clk 0:02:10.1]} 13. Nd6 {[%clk 0:02:20.6]} 13... Bxd6 {[%clk 0:02:11.1]}
14. Bxd6 {[%clk 0:02:21.6]} 14... Re8 {[%clk 0:02:12.7]} 15. Re1 {[%clk
0:01:24.3]} 15... Nf6 {[%clk 0:02:08.5]} 16. Be5 {[%clk 0:01:22.4]} 16... Rc8
{[%clk 0:02:05.9]} 17. Qf3 {[%clk 0:01:11]} 17... Nd7 {[%clk 0:02:03.6]} 18.
Rad1 {[%clk 0:01:09.7]} 18... Ba8 {[%clk 0:02:02.4]} 19. c5 {[%clk 0:01:02.1]}
19... Nf6 {[%clk 0:01:38.2]} 20. Bxf6 {[%clk 0:00:59.2]} 20... Qxf6 {[%clk
0:01:37.7]} 21. Qxf6 {[%clk 0:00:44.1]} 21... gxf6 {[%clk 0:01:38.4]} 22. f4
{[%clk 0:00:39.2]} 22... Red8 {[%clk 0:01:38.9]} 23. b4 {[%clk 0:00:36.8]} 23...
Rd7 {[%clk 0:01:34.9]} 24. Bf3 {[%clk 0:00:18]} 24... Rcd8 {[%clk 0:01:31]} 25.
a3 {[%clk 0:00:12.9]} 25... Kf8 {[%clk 0:01:26]} 26. Kf2 {[%clk 0:00:08.6]}
26... Ke7 {[%clk 0:01:24.3]} 27. Ke3 {[%clk 0:00:09.6]} 27... Bb7 {[%clk
0:01:19.2]} 28. Rd2 {[%clk 0:00:10]} 28... e5 {[%clk 0:01:14.6]} 29. Red1 {[%clk
0:00:11.4]} 29... exd4+ {[%clk 0:01:00.4]} 30. Rxd4 {[%clk 0:00:12.4]} 30...
bxc5 {[%clk 0:00:59]} 31. bxc5 {[%clk 0:00:10.6]} 31... h6 {[%clk 0:00:47.4]}
32. Bh5 {[%clk 0:00:09.1]} 32... Rxd4 {[%clk 0:00:42.6]} 33. Rxd4 {[%clk
0:00:09.6]} 33... Rxd4 {[%clk 0:00:44.5]} 34. Kxd4 {[%clk 0:00:11.4]} 34... Bc8
{[%clk 0:00:43.5]} 35. h4 {[%clk 0:00:09]} 35... Be6 {[%clk 0:00:44.2]} 36. Bf3
{[%clk 0:00:07.5]} 36... Kd7 {[%clk 0:00:45.2]} 37. Kc3 {[%clk 0:00:05.6]} 37...
Ba2 {[%clk 0:00:45]} 38. Kb4 {[%clk 0:00:06.1]} 38... Kc7 {[%clk 0:00:45.9]} 39.
Kc3 {[%clk 0:00:06.2]} 39... Be6 {[%clk 0:00:45.4]} 40. Kd4 {[%clk 0:00:07.2]}
40... Kd7 {[%clk 0:00:45.4]} 41. Be4 {[%clk 0:00:06.3]} 41... Ba2 {[%clk
0:00:43.7]} 42. Bh7 {[%clk 0:00:06.4]} 42... Bb3 {[%clk 0:00:44.2]} 43. Bf5+
{[%clk 0:00:07.2]} 43... Kc7 {[%clk 0:00:44.4]} 44. Bh7 {[%clk 0:00:05.9]} 44...
Be6 {[%clk 0:00:44.6]} 45. Ke4 {[%clk 0:00:05.3]} 45... Kd8 {[%clk 0:00:41.9]}
46. Kd4 {[%clk 0:00:04.9]} 46... Kc7 {[%clk 0:00:39.4]} 47. Bc2 {[%clk
0:00:05.7]} 47... Kd7 {[%clk 0:00:38.2]} 48. Ba4 {[%clk 0:00:06.9]} 48... Kc7
{[%clk 0:00:39]} 49. Kc3 {[%clk 0:00:05.6]} 49... Kd7 {[%clk 0:00:39]} 50. Kb4
{[%clk 0:00:07]} 50... Kc7 {[%clk 0:00:40.2]} 51. Ka5 {[%clk 0:00:08.5]} 51...
Kb7 {[%clk 0:00:41.5]} 52. Bd1 {[%clk 0:00:09]} 52... Bc4 {[%clk 0:00:41.2]} 53.
Bh5 {[%clk 0:00:08.8]} 53... Kc7 {[%clk 0:00:41.8]} 54. Kb4 {[%clk 0:00:06.6]}
54... Be6 {[%clk 0:00:42.1]} 55. Kc3 {[%clk 0:00:07.7]} 55... Kd7 {[%clk
0:00:41.4]} 56. Kd4 {[%clk 0:00:09.1]} 56... Ba2 {[%clk 0:00:41.6]} 57. Bg4+
{[%clk 0:00:09.7]} 57... Kc7 {[%clk 0:00:41.9]} 58. Bf5 {[%clk 0:00:11.1]} 58...
Bb3 {[%clk 0:00:41.1]} 59. Ke4 {[%clk 0:00:11.2]} 59... Kd8 {[%clk 0:00:39.3]}
60. Kf3 {[%clk 0:00:12.1]} 60... Bd1+ {[%clk 0:00:39.3]} 61. Ke3 {[%clk
0:00:13.6]} 61... Bb3 {[%clk 0:00:40.3]} 62. Be4 {[%clk 0:00:14.4]} 62... Kd7
{[%clk 0:00:40.6]} 63. Kf3 {[%clk 0:00:07.1]} 63... Bd1+ {[%clk 0:00:39.1]} 64.
Ke3 {[%clk 0:00:08.6]} 64... Bb3 {[%clk 0:00:39.9]} 65. Bf3 {[%clk 0:00:09.6]}
65... Ba2 {[%clk 0:00:33.8]} 66. Be2 {[%clk 0:00:08.2]} 66... Bd5 {[%clk
0:00:31.3]} 67. Bg4+ {[%clk 0:00:08]} 67... Kc7 {[%clk 0:00:31.8]} 68. Bh5
{[%clk 0:00:06.1]} 68... Ba2 {[%clk 0:00:31.5]} 69. Be2 {[%clk 0:00:05.8]} 69...
Bd5 {[%clk 0:00:30.6]} 70. f5 {[%clk 0:00:07.1]} 70... Kd7 {[%clk 0:00:27]} 71.
Kf4 {[%clk 0:00:08.6]} 71... Ba2 {[%clk 0:00:19.4]} 72. Kg4 {[%clk 0:00:09.4]}
72... Bb1 {[%clk 0:00:20.8]} 73. Kh5 {[%clk 0:00:09.1]} 73... Bxf5 {[%clk
0:00:21.5]} 74. Kxh6 {[%clk 0:00:10.6]} 74... Be4 {[%clk 0:00:21.1]} 75. Kg7
{[%clk 0:00:10.2]} 75... Ke7 {[%clk 0:00:22.5]} 76. h5 {[%clk 0:00:11.1]} 76...
Ke6 {[%clk 0:00:18.8]} 77. Bc4+ {[%clk 0:00:08.2]} 77... Ke5 {[%clk 0:00:08.2]}
78. Bxf7 {[%clk 0:00:09.3]} 78... Kd4 {[%clk 0:00:09.3]} 79. h6 {[%clk
0:00:10.3]} 79... Kxc5 {[%clk 0:00:08.6]} 80. Bg6 {[%clk 0:00:11.6]} 1-0

[Event "*** Titled Tuesday 3|2 Blitz"]
[Site "Chess.com"]
[Date "2016.08.02"]
[Round "9"]
[White "eltenedor"]
[Black "shivakaka"]
[Result "0-1"]
[WhiteElo "2011"]
[BlackElo "2117"]
[TimeControl "180+2"]
[EndTime "13:07:00 PDT"]
[Termination "shivakaka won by resignation"]

1. c4 {[%clk 0:03:01.9]} 1... Nf6 {[%clk 0:02:41.4]} 2. g3 {[%clk 0:03:01.5]}
2... e6 {[%clk 0:02:41.8]} 3. Bg2 {[%clk 0:03:00.3]} 3... d5 {[%clk 0:02:43.2]}
4. d4 {[%clk 0:03:01.4]} 4... Be7 {[%clk 0:02:39.8]} 5. Nf3 {[%clk 0:03:00.8]}
5... O-O {[%clk 0:02:41.1]} 6. Nbd2 {[%clk 0:03:01]} 6... c6 {[%clk 0:02:38.4]}
7. O-O {[%clk 0:03:01.3]} 7... Nbd7 {[%clk 0:02:39.1]} 8. Qc2 {[%clk 0:03:00.3]}
8... b6 {[%clk 0:02:39.8]} 9. e4 {[%clk 0:03:01.2]} 9... dxe4 {[%clk 0:02:33.7]}
10. Nxe4 {[%clk 0:03:03.1]} 10... Nxe4 {[%clk 0:02:31.5]} 11. Qxe4 {[%clk
0:03:05]} 11... Bb7 {[%clk 0:02:32.1]} 12. Ne5 {[%clk 0:02:54.8]} 12... Qc8
{[%clk 0:02:31.1]} 13. Nxc6 {[%clk 0:02:33.8]} 13... Bf6 {[%clk 0:01:58.6]} 14.
Ne7+ {[%clk 0:02:27.7]} 14... Bxe7 {[%clk 0:01:57.8]} 15. Qxb7 {[%clk
0:02:27.6]} 15... Qxb7 {[%clk 0:01:54.8]} 16. Bxb7 {[%clk 0:02:29.5]} 16... Rab8
{[%clk 0:01:56.3]} 17. Bc6 {[%clk 0:02:26]} 17... Rfd8 {[%clk 0:01:55.2]} 18. b3
{[%clk 0:02:18.6]} 18... Bf6 {[%clk 0:01:55.5]} 19. Bb2 {[%clk 0:02:17.3]} 19...
Nc5 {[%clk 0:01:52]} 20. Rad1 {[%clk 0:02:15]} 20... Na6 {[%clk 0:01:44.2]} 21.
a3 {[%clk 0:02:03.1]} 21... Rd6 {[%clk 0:01:40.3]} 22. Bg2 {[%clk 0:01:22.6]}
22... Rbd8 {[%clk 0:01:38.9]} 23. Bb7 {[%clk 0:01:06.5]} 23... Nc7 {[%clk
0:01:38.2]} 24. Kg2 {[%clk 0:00:50.4]} 24... Bxd4 {[%clk 0:01:37.2]} 25. Bxd4
{[%clk 0:00:51.7]} 25... Rxd4 {[%clk 0:01:36.5]} 26. Bf3 {[%clk 0:00:50.7]}
26... Kf8 {[%clk 0:01:30.6]} 27. Rfe1 {[%clk 0:00:48.8]} 27... Rd3 {[%clk
0:01:23.5]} 28. Be2 {[%clk 0:00:41]} 28... Rd2 {[%clk 0:01:21.2]} 29. Kf1 {[%clk
0:00:39.1]} 29... Ke7 {[%clk 0:01:15.2]} 30. Rxd2 {[%clk 0:00:38.8]} 30... Rxd2
{[%clk 0:01:14.4]} 31. Bd1 {[%clk 0:00:22.4]} 31... Kd6 {[%clk 0:01:11.1]} 32.
b4 {[%clk 0:00:22.8]} 32... e5 {[%clk 0:01:07.3]} 33. Be2 {[%clk 0:00:18.5]}
33... f6 {[%clk 0:01:05.6]} 34. Rd1 {[%clk 0:00:19.5]} 34... Rxd1+ {[%clk
0:01:01.3]} 35. Bxd1 {[%clk 0:00:21.4]} 35... Ne6 {[%clk 0:01:02.2]} 36. Bc2
{[%clk 0:00:22.8]} 36... a5 {[%clk 0:00:57.2]} 37. Bxh7 {[%clk 0:00:21.2]} 37...
axb4 {[%clk 0:00:55.9]} 38. axb4 {[%clk 0:00:23.1]} 38... Nd4 {[%clk 0:00:52.8]}
39. Ke1 {[%clk 0:00:17.7]} 39... Nc6 {[%clk 0:00:53.3]} 40. b5 {[%clk
0:00:17.5]} 40... Nd4 {[%clk 0:00:51.5]} 41. Kd2 {[%clk 0:00:15.4]} 41... Kc5
{[%clk 0:00:52.1]} 42. Kc3 {[%clk 0:00:14.9]} 42... Nf3 {[%clk 0:00:49.9]} 43.
h4 {[%clk 0:00:13]} 43... Nd4 {[%clk 0:00:46.2]} 44. Bd3 {[%clk 0:00:12.1]}
44... Ne6 {[%clk 0:00:40.9]} 45. Be2 {[%clk 0:00:10.3]} 45... Kd6 {[%clk
0:00:41.7]} 46. Kd3 {[%clk 0:00:07.6]} 46... Nc5+ {[%clk 0:00:42.6]} 47. Ke3
{[%clk 0:00:08.4]} 47... f5 {[%clk 0:00:42.4]} 48. h5 {[%clk 0:00:08.5]} 48...
Ke6 {[%clk 0:00:42.9]} 49. f3 {[%clk 0:00:08.5]} 49... Kf6 {[%clk 0:00:43.1]}
50. g4 {[%clk 0:00:08.7]} 50... f4+ {[%clk 0:00:33.7]} 51. Kd2 {[%clk 0:00:08]}
51... g6 {[%clk 0:00:32.5]} 52. hxg6 {[%clk 0:00:05.6]} 52... Kxg6 {[%clk
0:00:32.8]} 53. Bd3+ {[%clk 0:00:06.7]} 53... Kg5 {[%clk 0:00:32.7]} 54. Bf5
{[%clk 0:00:05.1]} 54... Kf6 {[%clk 0:00:32.4]} 55. Kc3 {[%clk 0:00:03.9]} 55...
Kg5 {[%clk 0:00:33.1]} 56. Kd2 {[%clk 0:00:04.9]} 56... Kh6 {[%clk 0:00:33.1]}
57. Ke2 {[%clk 0:00:05.7]} 57... Kg7 {[%clk 0:00:33.5]} 58. Bd7 {[%clk
0:00:05.3]} 58... Nxd7 {[%clk 0:00:30.2]} 59. c5 {[%clk 0:00:05]} 59... bxc5
{[%clk 0:00:24.8]} 60. Kd3 {[%clk 0:00:05.4]} 60... Kf6 {[%clk 0:00:24.1]} 61.
Kc4 {[%clk 0:00:04.1]} 61... Ke6 {[%clk 0:00:24.5]} 62. b6 {[%clk 0:00:04.2]}
62... Nxb6+ {[%clk 0:00:24]} 63. Kxc5 {[%clk 0:00:05.5]} 63... Nd5 {[%clk
0:00:24.7]} 64. Kc4 {[%clk 0:00:05.6]} 64... Ne3+ {[%clk 0:00:24.3]} 65. Kd3
{[%clk 0:00:06.4]} 65... Ng2 {[%clk 0:00:20.3]} 66. Ke2 {[%clk 0:00:07.1]} 66...
Nh4 {[%clk 0:00:19.9]} 67. Kf2 {[%clk 0:00:07.2]} 67... Kf6 {[%clk 0:00:20.8]}
68. Ke2 {[%clk 0:00:07.2]} 68... e4 {[%clk 0:00:20.5]} 69. fxe4 {[%clk
0:00:07.7]} 69... Ke5 {[%clk 0:00:20.9]} 70. g5 {[%clk 0:00:09]} 70... Kxe4
{[%clk 0:00:21.9]} 71. Kf2 {[%clk 0:00:08.9]} 71... Kf5 {[%clk 0:00:22.5]} 72.
g6 {[%clk 0:00:08.7]} 72... Kxg6 {[%clk 0:00:23]} 73. Kf1 {[%clk 0:00:09.7]}
73... Kg5 {[%clk 0:00:24.1]} 74. Kf2 {[%clk 0:00:09]} 74... Kg4 {[%clk
0:00:24.9]} 75. Kf1 {[%clk 0:00:09.4]} 75... Kg3 {[%clk 0:00:25.8]} 76. Kg1
{[%clk 0:00:09.9]} 76... f3 {[%clk 0:00:25.8]} 77. Kh1 {[%clk 0:00:10.1]} 77...
Ng2 {[%clk 0:00:20.5]} 78. Kg1 {[%clk 0:00:10.6]} 78... f2+ {[%clk 0:00:17]} 79.
Kf1 {[%clk 0:00:10.3]} 79... Ne3+ {[%clk 0:00:17.7]} 0-1

[Event "*** Titled Tuesday 3|2 Blitz"]
[Site "Chess.com"]
[Date "2016.08.02"]
[Round "9"]
[White "petrpalachev"]
[Black "MateusViageiro"]
[Result "1/2-1/2"]
[WhiteElo "2413"]
[BlackElo "2288"]
[TimeControl "180+2"]
[EndTime "13:08:15 PDT"]
[Termination "Game drawn by agreement"]

1. d4 {[%clk 0:03:01.9]} 1... Nf6 {[%clk 0:03:00.1]} 2. c4 {[%clk 0:03:03.2]}
2... e6 {[%clk 0:03:00.9]} 3. Nc3 {[%clk 0:03:04.2]} 3... Bb4 {[%clk 0:03:00.9]}
4. e3 {[%clk 0:03:05.5]} 4... O-O {[%clk 0:03:00.9]} 5. Bd3 {[%clk 0:03:06.4]}
5... b6 {[%clk 0:03:02]} 6. Nf3 {[%clk 0:03:06.7]} 6... Bb7 {[%clk 0:03:03]} 7.
O-O {[%clk 0:03:08.2]} 7... d5 {[%clk 0:03:04.1]} 8. cxd5 {[%clk 0:03:07.5]}
8... exd5 {[%clk 0:03:02.9]} 9. a3 {[%clk 0:03:08.7]} 9... Be7 {[%clk
0:03:03.2]} 10. b4 {[%clk 0:03:10.2]} 10... Nbd7 {[%clk 0:02:59.6]} 11. Qb3
{[%clk 0:03:08.9]} 11... a6 {[%clk 0:02:54.4]} 12. a4 {[%clk 0:03:10]} 12... Rb8
{[%clk 0:02:52.7]} 13. Ba3 {[%clk 0:03:09.5]} 13... c5 {[%clk 0:02:50]} 14. bxc5
{[%clk 0:03:10.1]} 14... bxc5 {[%clk 0:02:50.6]} 15. Qa2 {[%clk 0:03:10.2]}
15... c4 {[%clk 0:02:43.8]} 16. Bf5 {[%clk 0:03:08.2]} 16... g6 {[%clk
0:02:38.5]} 17. Bh3 {[%clk 0:03:07.8]} 17... Bc6 {[%clk 0:02:32.7]} 18. Nd2
{[%clk 0:03:08.6]} 18... Nb6 {[%clk 0:02:24.4]} 19. Rab1 {[%clk 0:03:05.7]}
19... Bd7 {[%clk 0:02:14.3]} 20. Bxd7 {[%clk 0:03:01.8]} 20... Qxd7 {[%clk
0:02:08.7]} 21. Rfe1 {[%clk 0:02:59.9]} 21... Rfe8 {[%clk 0:02:04.8]} 22. e4
{[%clk 0:02:58.6]} 22... Nxa4 {[%clk 0:01:53.8]} 23. Rxb8 {[%clk 0:02:56.5]}
23... Rxb8 {[%clk 0:01:49.6]} 24. Nxd5 {[%clk 0:02:56.5]} 24... Nxd5 {[%clk
0:01:45.2]} 25. exd5 {[%clk 0:02:40.5]} 25... Bxa3 {[%clk 0:01:39.6]} 26. Qxa3
{[%clk 0:02:35.3]} 26... c3 {[%clk 0:01:39.9]} 27. Ne4 {[%clk 0:02:35]} 27...
Qf5 {[%clk 0:01:11.5]} 28. Nxc3 {[%clk 0:02:07.6]} 28... Nxc3 {[%clk 0:01:10.7]}
29. Qxc3 {[%clk 0:02:09.5]} 29... Qxd5 {[%clk 0:01:07.2]} 30. h4 {[%clk
0:02:01.1]} 30... Rd8 {[%clk 0:01:07]} 31. Rd1 {[%clk 0:01:45.4]} 31... a5
{[%clk 0:01:07.9]} 32. g3 {[%clk 0:01:42.7]} 32... h5 {[%clk 0:01:08.7]} 33. Ra1
{[%clk 0:01:41.9]} 33... Qxd4 {[%clk 0:01:08.4]} 34. Qxa5 {[%clk 0:01:41.4]}
34... Qd5 {[%clk 0:01:05.3]} 35. Qe1 {[%clk 0:01:40.8]} 35... Qd2 {[%clk
0:01:04.9]} 36. Qe7 {[%clk 0:01:38.3]} 36... Qd6 {[%clk 0:01:05.1]} 37. Qg5
{[%clk 0:01:37.3]} 37... Qd2 {[%clk 0:01:04.6]} 38. Qb5 {[%clk 0:01:25.3]} 38...
Qd3 {[%clk 0:01:04.1]} 39. Qb2 {[%clk 0:01:22.2]} 39... Qd4 {[%clk 0:01:04.7]}
40. Qb1 {[%clk 0:01:22.8]} 40... Qd3 {[%clk 0:01:05.7]} 41. Qe1 {[%clk
0:01:19.7]} 41... Qd2 {[%clk 0:01:06.2]} 42. Qf1 {[%clk 0:01:20.6]} 42... Qd3
{[%clk 0:01:06.9]} 43. Qh3 {[%clk 0:01:20.6]} 43... Qd7 {[%clk 0:01:07.6]} 44.
Qh2 {[%clk 0:01:18.2]} 44... Qd4 {[%clk 0:01:07]} 45. Rf1 {[%clk 0:01:17.2]}
45... Re8 {[%clk 0:01:04]} 46. Qg2 {[%clk 0:01:17.7]} 46... Qe4 {[%clk
0:01:04.6]} 47. Qh3 {[%clk 0:01:18.9]} 47... f5 {[%clk 0:01:00.9]} 48. Rc1
{[%clk 0:01:12.8]} 48... Qf3 {[%clk 0:00:52.6]} 49. Qf1 {[%clk 0:01:11.1]} 49...
Re2 {[%clk 0:00:50.1]} 50. Re1 {[%clk 0:01:09.3]} 50... Rxe1 {[%clk 0:00:49]}
51. Qxe1 {[%clk 0:01:11.2]} 51... Qc6 {[%clk 0:00:46.6]} 52. Qe7 {[%clk
0:01:10.4]} 52... Qb6 {[%clk 0:00:44.7]} 53. Kg2 {[%clk 0:01:06.8]} 53... Qc6+
{[%clk 0:00:45.2]} 54. Kh2 {[%clk 0:01:08]} 54... Qb6 {[%clk 0:00:45.6]} 55.
Qe8+ {[%clk 0:01:06.3]} 55... Kg7 {[%clk 0:00:46]} 56. Qd7+ {[%clk 0:01:07.8]}
56... Kf6 {[%clk 0:00:44.5]} 57. Qd2 {[%clk 0:01:04.6]} 57... Qe6 {[%clk
0:00:43.7]} 58. Kg2 {[%clk 0:01:02.4]} 58... Qe4+ {[%clk 0:00:43.7]} 59. f3
{[%clk 0:01:03.9]} 59... Qe5 {[%clk 0:00:43.9]} 60. Qd8+ {[%clk 0:01:00.6]}
60... Kf7 {[%clk 0:00:42.5]} 61. Qd7+ {[%clk 0:01:01]} 61... Kf6 {[%clk
0:00:43.2]} 62. Qd2 {[%clk 0:00:51.6]} 62... Qe6 {[%clk 0:00:41.9]} 63. Kf2
{[%clk 0:00:51.9]} 63... Qb6+ {[%clk 0:00:40.8]} 64. Ke2 {[%clk 0:00:51.4]}
64... Qb5+ {[%clk 0:00:40.7]} 65. Qd3 {[%clk 0:00:52.5]} 65... Qb2+ {[%clk
0:00:41.2]} 66. Ke3 {[%clk 0:00:51.1]} 66... Qc1+ {[%clk 0:00:42.1]} 67. Kf2
{[%clk 0:00:47.9]} 67... Qb2+ {[%clk 0:00:42.4]} 68. Qe2 {[%clk 0:00:49.3]}
68... Qd4+ {[%clk 0:00:42.7]} 69. Qe3 {[%clk 0:00:50.1]} 69... Qb2+ {[%clk
0:00:43.4]} 70. Qe2 {[%clk 0:00:51.3]} 70... Qd4+ {[%clk 0:00:44]} 71. Kg2
{[%clk 0:00:52.9]} 71... Qd5 {[%clk 0:00:35.8]} 72. Qa6+ {[%clk 0:00:52.8]}
72... Kf7 {[%clk 0:00:36.1]} 73. Qa7+ {[%clk 0:00:53.4]} 73... Kf6 {[%clk
0:00:36.6]} 74. Qb6+ {[%clk 0:00:54.2]} 74... Kf7 {[%clk 0:00:37.5]} 75. Qb2
{[%clk 0:00:54.5]} 75... Qe6 {[%clk 0:00:36.8]} 76. Kf2 {[%clk 0:00:53.3]} 76...
Qd5 {[%clk 0:00:36.4]} 77. Ke3 {[%clk 0:00:49.5]} 77... Qc5+ {[%clk 0:00:36.1]}
78. Ke2 {[%clk 0:00:42.9]} 78... Qc4+ {[%clk 0:00:36.8]} 79. Ke3 {[%clk
0:00:38.2]} 79... Qc5+ {[%clk 0:00:36.9]} 80. Qd4 {[%clk 0:00:39.2]} 80... Qc1+
{[%clk 0:00:37]} 81. Ke2 {[%clk 0:00:36.7]} 81... Qc2+ {[%clk 0:00:33.1]} 82.
Qd2 {[%clk 0:00:37.6]} 82... Qc4+ {[%clk 0:00:32.3]} 83. Qd3 {[%clk 0:00:36.4]}
83... Qe6+ {[%clk 0:00:31]} 84. Kf1 {[%clk 0:00:35.2]} 84... Qe5 {[%clk
0:00:30.6]} 85. Qc4+ {[%clk 0:00:33.2]} 85... Kf6 {[%clk 0:00:30.1]} 86. Qa6+
{[%clk 0:00:33.4]} 86... Kf7 {[%clk 0:00:30.6]} 87. Qa2+ {[%clk 0:00:30.9]}
87... Kf6 {[%clk 0:00:30.7]} 88. Qf2 {[%clk 0:00:29.6]} 88... Qa1+ {[%clk
0:00:26.7]} 89. Kg2 {[%clk 0:00:30.9]} 89... Qc3 {[%clk 0:00:27.7]} 90. Qe2
{[%clk 0:00:31.7]} 90... Qc5 {[%clk 0:00:27.5]} 91. Qe8 {[%clk 0:00:31.6]} 91...
Qc2+ {[%clk 0:00:26.6]} 92. Kh3 {[%clk 0:00:32.9]} 92... Qd1 {[%clk 0:00:21.5]}
93. Qf8+ {[%clk 0:00:33.4]} 93... Ke6 {[%clk 0:00:21.4]} 94. Qg8+ {[%clk
0:00:33.7]} 94... Kf6 {[%clk 0:00:22.3]} 95. Qh8+ {[%clk 0:00:34.2]} 95... Kf7
{[%clk 0:00:23]} 96. Qh7+ {[%clk 0:00:35.2]} 96... Kf6 {[%clk 0:00:24.2]} 97.
Qh8+ {[%clk 0:00:34.7]} 97... Kf7 {[%clk 0:00:25.4]} 1/2-1/2